{"text_format":"1","workbook":"xlsx","n_sheets":3,"sheets":["Arvosanat","Yhteenveto","Arvosteluasteikko"],"not_rendered":{"charts":1,"images":1,"macros":1,"external_links":0,"defined_names":11,"comments":0,"pivot_tables":0},"unopened":[],"bounds":{"document_bytes":16777216,"sheet_cells":100000,"rows_first":2000,"rows_last":500,"rows_between":2000,"halvings":0,"cell_chars":16384,"cell_head_chars":4096},"cells_cut":0,"cells_raw":0,"read":"whole","date_system":"1900"}

{"sheet":"Arvosanat","index":0,"n_rows":8,"n_cols":9,"rows_kept":8,"cut":false,"hidden":false,"merged":[]}
[null,"Luokan nimi"]
[null,"Opettajan nimi",null,null,null,"Kokeen päivämäärä","2011-01-18","2011-01-25","2011-02-01"]
[null,null,null,null,"Enimmäispisteet",{"$f":"SUM(TotalAssignmentPoints[#Data])","v":90},20,20,50]
[null,"Opiskelijan nimi","Suorituskyky","Arvosana","%","Yhteispisteet","Kirjoitustehtävä 1","Kirjoitustehtävä 2","Luonnosversio"]
[null,"Opiskelija 1",{"$f":"StudentData[[#This Row],[Yhteispisteet]]","v":90},{"$f":"IFERROR(VLOOKUP(StudentData[[#This Row],[%]],GradeTable[],2,TRUE),\"\")","v":"A+"},{"$f":"IFERROR(StudentData[[#This Row],[Yhteispisteet]]/TotalPoints,\"\")","v":1},{"$f":"IFERROR(SUM(StudentData[[#This Row],[Kirjoitustehtävä 1]]:OFFSET(F5,,COUNTA(TotalAssignmentPoints[]))),\"\")","v":90},20,20,50]
[null,"Opiskelija 2",{"$f":"StudentData[[#This Row],[Yhteispisteet]]","v":60},{"$f":"IFERROR(VLOOKUP(StudentData[[#This Row],[%]],GradeTable[],2,TRUE),\"\")","v":"D"},{"$f":"IFERROR(StudentData[[#This Row],[Yhteispisteet]]/TotalPoints,\"\")","v":0.66666666666666663},{"$f":"IFERROR(SUM(StudentData[[#This Row],[Kirjoitustehtävä 1]]:OFFSET(F6,,COUNTA(TotalAssignmentPoints[]))),\"\")","v":60},10,10,40]
[null,"Opiskelija 3",{"$f":"StudentData[[#This Row],[Yhteispisteet]]","v":75},{"$f":"IFERROR(VLOOKUP(StudentData[[#This Row],[%]],GradeTable[],2,TRUE),\"\")","v":"B"},{"$f":"IFERROR(StudentData[[#This Row],[Yhteispisteet]]/TotalPoints,\"\")","v":0.83333333333333337},{"$f":"IFERROR(SUM(StudentData[[#This Row],[Kirjoitustehtävä 1]]:OFFSET(F7,,COUNTA(TotalAssignmentPoints[]))),\"\")","v":75},20,15,40]
[null,"Keskiarvo - arvosana/pisteet",null,{"$f":"IFERROR(VLOOKUP(StudentData[[#Totals],[%]],GradeTable[],2,TRUE),\"\")","v":"B"},{"$f":"SUBTOTAL(101,StudentData[%])","v":0.83333333333333337},{"$f":"SUBTOTAL(101,StudentData[Yhteispisteet])","v":75},{"$f":"SUBTOTAL(101,StudentData[Kirjoitustehtävä 1])","v":16.666666666666668},{"$f":"SUBTOTAL(101,StudentData[Kirjoitustehtävä 2])","v":15},{"$f":"SUBTOTAL(101,StudentData[Luonnosversio])","v":43.333333333333336}]

{"sheet":"Yhteenveto","index":1,"n_rows":51,"n_cols":8,"rows_kept":51,"cut":false,"hidden":false,"merged":[[7,1,7,3],[11,1,11,2],[35,1,44,7],[0,0,0,4]]}
["Koulun nimi"]
[null,{"$f":"TeacherName","v":"Opettajan nimi"}]
[null,{"$f":"ClassName","v":"Luokan nimi"}]
[null,"Edistyminen"]
[null,"2011-09-22"]
[]
[null,"Opiskelijan nimi:"]
[null,"Opiskelija 3"]
[]
[]
[null,"Opiskelijan sijaluku",null,"Arvosana","Prosenttiosuus","Opiskelijan pisteet","Yhteispisteet","KA"]
[null,{"$f":"IFERROR(_xlfn.RANK.EQ(VLOOKUP(B8,StudentData[],5,FALSE),StudentData[Yhteispisteet]) & \" / \"&COUNTA(StudentData[Opiskelijan nimi]) & \" oppilaasta\",\"\")","v":"2 / 3 oppilaasta"},null,{"$f":"IFERROR(VLOOKUP(StudentName,StudentData[],3,FALSE),\"\")","v":"B"},{"$f":"IFERROR(VLOOKUP(StudentName,StudentData[],4,FALSE),\"\")","v":0.83333333333333337},{"$f":"IFERROR(VLOOKUP(StudentName,StudentData[],5,FALSE),\"\")","v":75},{"$f":"TotalPoints","v":90},{"$f":"IFERROR(VLOOKUP(E12,GradeTable[],3,TRUE),\"\")","v":3}]
[]
[]
[]
[]
[]
[]
[]
[]
[]
[]
[]
[]
[]
[]
[]
[]
[]
[]
[]
[]
[]
[]
[null,"Opettajan kommentit"]
[]
[]
[]
[]
[]
[]
[]
[]
[]
[]
[]
[]
[null,"Huoltajan allekirjoitus (jos se tarvitaan)"]
[]
[]
[null,"X",null,null,null,"Päivämäärä:"]

{"sheet":"Arvosteluasteikko","index":2,"n_rows":20,"n_cols":4,"rows_kept":20,"cut":false,"hidden":false,"merged":[[4,1,4,3],[2,1,2,4]]}
[null,"Arvosanan laskeminen"]
[]
[null,"Kirjoita kunkin arvosanan prosenttiarvo alla olevaan taulukkoon, jos haluat mukauttaa arvosteluasteikon omiin tarpeisiisi."]
[]
[null,"ARVOSANA- JA KESKIARVOTAULUKKO\n(käytetään laskettaessa opiskelijan arvosana Arvostelu-välilehdessä)"]
[null,"Pisteet","Arvosana","KA"]
[null,0,"F",0]
[null,0.6,"D-",0.67]
[null,0.63,"D",1]
[null,0.67,"D+",1.33]
[null,0.7,"C-",1.67]
[null,0.73,"C",2]
[null,0.77,"C+",2.33]
[null,0.8,"B-",2.67]
[null,0.83,"B",3]
[null,0.87,"B+",3.33]
[null,0.9,"A-",3.67]
[null,0.93,"A",4]
[null,0.97,"A+",4]
[null,"Pisteet ja keskiarvo (KA) on annettava nousevassa järjestyksessä."]